bitfinex/quotes_SOLUSD_20240603
["timestamp","ask_amount","ask_price","bid_price","bid_amount"]
[1717430481288,22.76151089,164.82,164.81,0.2]
[1717430481481,8.3106,164.82,164.81,0.2]
[1717430481686,2.2448,164.82,164.81,0.2]
[1717430482111,9.58711089,164.82,164.81,0.2]
[1717430482480,2.2448,164.82,164.81,0.2]
[1717430482686,8.7753,164.82,164.81,0.2]
[1717430483801,2.2448,164.82,164.81,0.2]
[1717430484185,3.05661089,164.82,164.81,0.2]
[1717430484419,7.54631089,164.82,164.81,0.2]
[1717430484716,13.88091089,164.82,164.81,0.2]
[1717430485385,66.96601089,164.82,164.81,0.2]
[1717430485593,127.85001089,164.82,164.81,0.2]
[1717430487102,82.85001089,164.82,164.81,0.2]
[1717430488006,65.4831,164.82,164.81,0.2]
[1717430488180,19.8037,164.82,164.81,0.2]
[1717430488383,13.0691,164.82,164.81,0.2]
[1717430488806,6.7345,164.82,164.81,0.2]
[1717430489618,23.26031089,164.82,164.81,0.2]
[1717430489800,29.69041089,164.82,164.81,0.2]
[1717430490486,30.03041089,164.82,164.81,0.2]
[1717430491187,51.22041089,164.82,164.81,0.2]
[1717430491907,67.53871089,164.82,164.81,0.2]
[1717430492898,50.4086,164.82,164.81,0.2]
[1717430493404,20.0692,164.82,164.81,0.2]
[1717430493586,13.4691,164.82,164.81,0.2]
[1717430494011,6.7345,164.82,164.81,0.2]
[1717430495223,2.2448,164.82,164.81,0.2]
[1717430495423,3.05661089,164.82,164.81,0.2]
[1717430495722,2.2448,164.82,164.81,0.2]
[1717430495919,7.54631089,164.82,164.81,0.2]
[1717430496098,6.7345,164.82,164.81,0.2]
[1717430496792,7.54631089,164.82,164.81,0.2]
[1717430497403,20.94141089,164.82,164.81,0.2]
[1717430497603,21.11141089,164.82,164.81,0.2]
[1717430497800,13.6391,164.82,164.81,0.2]
[1717430498194,22.6185,164.82,164.81,0.2]
[1717430498594,2.4148,164.82,164.81,0.2]
[1717430499419,2.2448,164.82,164.81,0.2]
[1717430499827,52.0679,164.89,164.81,0.2]
[1717430500006,2.2446,164.84,164.81,0.2]
[1717430500205,2.2448,164.82,164.81,0.2]
[1717430505422,3.05661089,164.82,164.81,0.2]
[1717430506024,7.54631089,164.82,164.81,0.2]
[1717430506224,14.28091089,164.82,164.81,0.2]
[1717430507321,29.34761089,164.82,164.81,0.2]
[1717430507531,29.68761089,164.82,164.81,0.2]
[1717430509511,22.7885,164.82,164.81,0.2]
[1717430509712,22.6185,164.82,164.81,0.2]
[1717430511731,29.72761089,164.82,164.81,0.2]
[1717430514257,66.08761089,164.82,164.81,0.2]
[1717430515059,82.10661089,164.82,164.81,0.2]
[1717430515428,127.10661089,164.82,164.81,0.2]
[1717430516846,13.4724,164.78,164.77,0.8096359]
[1717430517158,18.85251664,164.78,164.77,0.8096359]
[1717430517732,18.68251664,164.78,164.77,0.8096359]
[1717430518947,28.47592753,164.78,164.77,0.8096359]
[1717430519154,28.64592753,164.78,164.77,0.8096359]
[1717430519361,27.83411664,164.78,164.77,0.8096359]
[1717430519536,27.66411664,164.78,164.77,0.8096359]
[1717430519736,28.47592753,164.78,164.77,0.8096359]
[1717430520455,34.81652753,164.78,164.77,0.8096359]
[1717430522046,71.17652753,164.78,164.77,0.8096359]
[1717430522559,2.2462,164.72,164.71,0.2]
[1717430522847,6.7386,164.72,164.71,0.2]
[1717430524356,13.4773,164.72,164.71,0.2]
[1717430524840,13.6473,164.72,164.71,0.2]
[1717430525358,6.7386,164.72,164.71,0.2]
[1717430527651,7.55041089,164.72,164.71,0.2]
[1717430527864,6.7386,164.72,164.71,0.2]
[1717430528947,22.4622,164.72,164.71,0.2]
[1717430529262,22.6322,164.72,164.71,0.2]
[1717430529764,22.4622,164.72,164.71,0.2]
[1717430530658,22.6322,164.72,164.71,0.2]
[1717430531244,22.4622,164.72,164.71,0.2]
[1717430531558,2.2462,164.72,164.71,0.2]
[1717430534850,3.05801089,164.72,164.71,0.2]
[1717430535278,2.2462,164.72,164.71,0.2]
[1717430539864,9.3262,164.72,164.71,0.2]
[1717430540375,2.2462,164.72,164.71,0.2]
[1717430540972,9.3262,164.72,164.71,0.2]
[1717430543000,37.43401089,164.72,164.71,0.2]
[1717430543780,36.7922,164.72,164.71,0.2]
[1717430545977,36.7922,164.72,164.61,1.0096359]
[1717430545978,2.2472,164.65,164.61,1.0096359]
[1717430546184,7.08,164.64,164.61,7.2398359]
[1717430546561,7.08,164.65,164.61,9.4875359]
[1717430546877,7.08,164.65,164.61,9.4874359]
[1717430547175,9.3272,164.65,164.61,7.2398359]
[1717430548177,9.3272,164.65,164.62,45.0]
[1717430548783,7.08,164.65,164.62,45.0]
[1717430549078,9.3272,164.65,164.62,45.0]
[1717430549777,9.3272,164.65,164.61,7.2398359]
[1717430549778,9.3272,164.65,164.61,1.0096359]
[1717430549982,9.3273,164.64,164.61,1.0096359]
[1717430550789,2.2473,164.64,164.61,1.0096359]
[1717430550983,7.08,164.63,164.61,1.0096359]
[1717430552490,9.3273,164.64,164.61,1.0096359]
[1717430552705,7.08,164.63,164.61,1.0096359]
[1717430552981,9.3275,164.63,164.61,1.0096359]
[1717430553390,7.08,164.63,164.61,1.0096359]
[1717430553562,2.2474,164.63,164.61,1.0096359]
[1717430553766,7.08,164.62,164.61,1.0096359]
[1717430553984,7.08,164.63,164.61,1.0096359]
[1717430554492,9.3275,164.63,164.61,1.0096359]
[1717430554687,10.13941089,164.62,164.61,1.0096359]
[1717430554989,9.3276,164.62,164.61,1.0096359]
[1717430555163,20.5656,164.62,164.61,1.0096359]
[1717430555364,35.8053,164.62,164.61,1.0096359]
[1717430555579,35.9753,164.62,164.61,1.0096359]
[1717430555964,29.726,164.62,164.61,1.0096359]
[1717430556165,2.2476,164.62,164.61,1.0096359]
[1717430556663,9.3276,164.62,164.61,1.0096359]
[1717430557667,2.2476,164.62,164.61,1.0096359]
[1717430557994,9.3276,164.62,164.61,1.0096359]
[1717430560288,2.2474,164.63,164.61,1.0096359]
[1717430561101,2.2476,164.62,164.61,1.0096359]
[1717430561284,9.3276,164.62,164.61,1.0096359]
[1717430561685,2.2476,164.62,164.61,1.0096359]
[1717430562086,9.3276,164.62,164.61,1.0096359]
[1717430562500,2.2476,164.62,164.61,1.0096359]
[1717430562691,9.3276,164.62,164.61,1.0096359]
[1717430563086,2.2476,164.62,164.61,1.0096359]
[1717430563403,9.3276,164.62,164.61,1.0096359]
[1717430563975,2.2476,164.62,164.61,1.0096359]
[1717430564176,9.3276,164.62,164.61,1.0096359]
[1717430564412,2.2476,164.62,164.61,1.0096359]
[1717430564610,9.3276,164.62,164.61,1.0096359]
[1717430565122,2.2476,164.62,164.61,1.0096359]
[1717430565487,9.3276,164.62,164.61,1.0096359]
[1717430566016,2.2476,164.62,164.61,1.0096359]
[1717430566212,9.3276,164.62,164.61,1.0096359]
[1717430573711,20.1296,164.62,164.61,1.0096359]
[1717430573922,26.8724,164.62,164.61,1.0096359]
[1717430575023,20.1296,164.62,164.61,1.0096359]
[1717430575221,6.7428,164.62,164.61,1.0096359]
[1717430575719,13.8228,164.62,164.61,1.0096359]
[1717430576922,6.7428,164.62,164.61,1.0096359]
[1717430577331,13.8228,164.62,164.61,1.0096359]
[1717430578421,6.7428,164.62,164.61,1.0096359]
[1717430578725,20.5656,164.62,164.61,1.0096359]
[1717430580520,29.556,164.62,164.61,1.0096359]
[1717430580706,35.9349,164.62,164.61,1.0096359]
[1717430581520,26.9445,164.62,164.61,1.0096359]
[1717430582104,2.2476,164.62,164.61,1.0096359]
[1717430582621,2.2474,164.64,164.61,1.0096359]
[1717430582805,7.08,164.63,164.61,1.0096359]
[1717430582996,9.3275,164.63,164.61,1.0096359]
[1717430583215,2.2476,164.62,164.61,1.0096359]
[1717430583608,9.3274,164.63,164.61,1.0096359]
[1717430583807,6.7401,164.69,164.61,1.0096359]
[1717430584129,2.2473,164.64,164.61,1.0096359]
[1717430584823,9.3273,164.64,164.61,1.0096359]
[1717430586524,9.3276,164.62,164.61,1.0096359]
[1717430586838,14.11231885,164.62,164.61,1.0096359]
[1717430588540,7.03231885,164.62,164.61,1.0096359]
[1717430588838,14.11231885,164.62,164.61,1.0096359]
[1717430589740,40.76061885,164.62,164.61,1.0096359]
[1717430592006,7.03231885,164.62,164.61,1.0096359]
[1717430592324,4.78471885,164.62,164.61,1.0096359]
[1717430594127,7.03231885,164.62,164.61,1.0096359]
[1717430594319,14.11231885,164.62,164.61,1.0096359]
[1717430594727,7.03231885,164.62,164.61,1.0096359]
[1717430594913,14.11231885,164.62,164.61,1.0096359]
[1717430596921,7.03231885,164.62,164.61,1.0096359]
[1717430597330,4.78471885,164.62,164.61,1.0096359]
[1717430598320,7.03231885,164.62,164.61,1.0096359]
[1717430599047,14.11231885,164.62,164.61,1.0096359]
[1717430602519,18.60751885,164.62,164.61,1.0096359]
[1717430604120,40.82431885,164.62,164.61,1.0096359]
[1717430604319,40.99431885,164.62,164.61,1.0096359]
[1717430604632,41.16431885,164.62,164.61,1.0096359]
[1717430605221,57.06221885,164.62,164.61,1.0096359]
[1717430605738,57.06221885,164.62,164.51,0.2]
[1717430605739,2.2486,164.55,164.51,0.2]
[1717430605926,9.3286,164.55,164.51,0.2]
[1717430607012,2.2484,164.56,164.51,2.449]
[1717430607235,9.3284,164.56,164.51,47.449]
[1717430607419,2.248,164.59,164.54,6.3884]
[1717430607737,9.328,164.59,164.55,45.0]
[1717430607953,7.08,164.59,164.55,45.0]
[1717430608118,9.3281,164.59,164.55,45.0]
[1717430608442,2.2481,164.58,164.55,45.0]
[1717430608936,2.2481,164.58,164.54,45.0]
[1717430609434,2.2481,164.58,164.53,53.2917]
[1717430609650,4.4955,164.61,164.53,51.043]
[1717430609651,4.4959,164.6,164.53,51.043]
[1717430609835,2.2484,164.57,164.53,45.0]
[1717430610650,2.2485,164.56,164.53,45.0]
[1717430611015,2.2483,164.57,164.53,45.0]
[1717430612140,2.2484,164.56,164.53,45.0]
[1717430614041,2.2486,164.55,164.51,0.2]
[1717430614724,2.2486,164.55,164.51,2.449]
[1717430615539,2.2486,164.55,164.51,0.2]
[1717430616120,2.2488,164.53,164.51,0.2]
[1717430617126,2.2489,164.52,164.51,0.2]
[1717430618143,2.2488,164.53,164.51,0.2]
[1717430618447,20.2346,164.57,164.51,0.2]
[1717430618744,2.2488,164.53,164.51,0.2]
[1717430619445,4.4968,164.56,164.51,0.2]
[1717430619446,28.5255,164.52,164.51,0.2]
[1717430619631,2.2489,164.52,164.51,0.2]
[1717430624120,6.7468,164.52,164.51,0.2]
[1717430627952,14.30551089,164.52,164.51,0.2]
[1717430628153,22.4895,164.52,164.51,0.2]
[1717430630970,13.4937,164.52,164.51,0.2]
[1717430631567,22.4895,164.52,164.51,0.2]
[1717430631865,29.5895,164.52,164.51,0.2]
[1717430637561,20.5937,164.52,164.51,0.2]
[1717430637873,13.8468,164.52,164.51,0.2]
[1717430640886,2.2489,164.52,164.51,0.2]
[1717430641200,9.3489,164.52,164.51,0.2]
[1717430642392,13.8468,164.52,164.51,0.2]
[1717430642601,20.5937,164.52,164.51,0.2]
[1717430642785,29.5895,164.52,164.51,0.2]
[1717430643293,36.4415,164.52,164.51,0.2]
[1717430643656,2.2496,164.47,164.46,0.7446622]
[1717430643863,13.8489,164.47,164.46,0.7446622]
[1717430646259,36.2291,164.47,164.46,0.7446622]
[1717430646697,6.7489,164.47,164.46,0.7446622]
[1717430646861,13.8489,164.47,164.46,0.7446622]
[1717430647787,29.5964,164.47,164.46,0.7446622]
[1717430648091,35.6273,164.47,164.46,0.7446622]
[1717430649394,28.5273,164.47,164.46,0.7446622]
[1717430652565,22.4964,164.47,164.46,0.7446622]
[1717430653693,15.7475,164.47,164.46,0.7446622]
[1717430654407,22.4964,164.47,164.46,0.7446622]
[1717430654875,36.90361089,164.47,164.46,0.7446622]
[1717430655068,37.07361089,164.47,164.46,0.7446622]
[1717430656196,36.0918,164.47,164.46,0.7446622]
[1717430656367,35.9218,164.47,164.46,0.7446622]
[1717430656683,29.5964,164.47,164.46,0.7446622]
[1717430657462,9.3496,164.47,164.46,0.7446622]
[1717430657667,2.2495,164.48,164.46,0.7446622]
[1717430657866,7.1,164.47,164.46,0.7446622]
[1717430658086,2.2496,164.47,164.46,0.7446622]
[1717430658480,9.3495,164.48,164.46,0.7446622]
[1717430658666,2.2496,164.47,164.46,0.7446622]
[1717430659296,9.3495,164.48,164.46,0.7446622]
[1717430659597,2.2496,164.47,164.46,0.7446622]
[1717430661005,9.3496,164.47,164.46,0.7446622]
[1717430661292,22.4964,164.47,164.46,0.7446622]
[1717430661492,29.5964,164.47,164.46,0.7446622]
[1717430661697,22.8475,164.47,164.46,0.7446622]
[1717430662206,13.8489,164.47,164.46,0.7446622]
[1717430662781,9.3496,164.47,164.46,0.7446622]
[1717430663796,2.2496,164.47,164.46,0.7446622]
[1717430665386,9.3496,164.47,164.46,0.7446622]
[1717430667806,2.2496,164.47,164.46,0.7446622]
[1717430668177,2.2495,164.48,164.46,0.7446622]
[1717430670609,2.2496,164.47,164.46,0.7446622]
[1717430671703,9.3496,164.47,164.46,0.7446622]
[1717430671877,13.8489,164.47,164.46,0.7446622]
[1717430672078,9.3496,164.47,164.46,0.7446622]
[1717430673611,20.5978,164.47,164.46,0.7446622]
[1717430673909,30.40821089,164.47,164.46,0.7446622]
[1717430674123,29.7664,164.47,164.46,0.7446622]
[1717430674407,29.5964,164.47,164.46,0.7446622]
[1717430674780,22.8475,164.47,164.46,0.7446622]
[1717430674999,13.8489,164.47,164.46,0.7446622]
[1717430675909,20.1849,164.47,164.46,0.7446622]
[1717430676197,29.5964,164.47,164.46,0.7446622]
[1717430677601,22.8475,164.47,164.46,0.7446622]
[1717430679003,36.62711089,164.47,164.46,0.7446622]
[1717430679182,36.96711089,164.47,164.46,0.7446622]
[1717430683094,73.43711089,164.47,164.46,0.7446622]
[1717430683298,133.52531089,164.47,164.46,0.7446622]
[1717430685894,2.2503,164.42,164.41,0.2]
[1717430686221,9.3503,164.42,164.41,0.2]
[1717430686813,2.2503,164.42,164.41,0.2]
[1717430687031,9.3503,164.42,164.41,0.2]
[1717430687325,2.2502,164.43,164.41,0.2]
[1717430687716,2.2503,164.42,164.41,0.2]
[1717430690414,9.3503,164.42,164.41,0.2]
[1717430691327,13.8509,164.42,164.41,0.2]
[1717430691917,6.7509,164.42,164.41,0.2]
[1717430692111,13.8509,164.42,164.41,0.2]
[1717430692300,2.2503,164.42,164.41,0.2]
[1717430692619,9.3503,164.42,164.41,0.2]
[1717430693126,2.2503,164.42,164.41,0.2]
[1717430694809,9.3503,164.42,164.41,0.2]
[1717430695301,13.8509,164.42,164.41,0.2]
[1717430695505,14.66271089,164.42,164.41,0.2]
[1717430697212,20.6019,164.42,164.41,0.2]
[1717430697404,21.41371089,164.42,164.41,0.2]
[1717430697933,20.6019,164.42,164.41,0.2]
[1717430700835,21.41371089,164.42,164.41,0.2]
[1717430701252,30.41501089,164.42,164.41,0.2]
[1717430702418,30.58501089,164.42,164.41,0.2]
[1717430703032,29.7732,164.42,164.41,0.2]
[1717430703625,2.2503,164.42,164.41,0.2]
[1717430712230,6.2189,164.47,164.41,0.2]
[1717430712231,2.2497,164.47,164.41,7.3]
[1717430712529,8.99429122,164.5,164.41,7.3]
[1717430712530,2.2499,164.45,164.42,7.1]
[1717430712740,2.25,164.44,164.42,45.0]
[1717430712955,2.25,164.44,164.42,52.1]
[1717430713123,2.25,164.44,164.41,7.3]
[1717430713320,2.2503,164.42,164.41,0.2]
[1717430714329,13.8509,164.42,164.41,0.2]
[1717430714712,14.66271089,164.42,164.41,0.2]
[1717430715040,13.8509,164.42,164.41,0.2]
[1717430716733,2.2508,164.38,164.37,0.3333297]
[1717430716941,9.3508,164.38,164.37,0.3333297]
[1717430718123,2.2508,164.38,164.37,0.3333297]
[1717430718333,2.2507,164.39,164.37,0.3333297]
[1717430719135,2.2505,164.41,164.37,0.3333297]
[1717430719444,2.2505,164.41,164.37,52.4333297]
[1717430720021,9.0005,164.44,164.37,45.3333297]
[1717430720022,2.2506,164.4,164.37,45.3333297]
[1717430720220,2.2507,164.39,164.37,0.3333297]
[1717430722147,2.2506,164.4,164.37,0.3333297]
[1717430723262,2.2507,164.39,164.37,0.3333297]
[1717430723543,2.2508,164.38,164.37,0.3333297]
[1717430723757,9.3508,164.38,164.37,0.3333297]
[1717430723926,2.2508,164.38,164.37,0.3333297]
[1717430724446,9.3508,164.38,164.37,0.3333297]
[1717430724648,10.16261089,164.38,164.37,0.3333297]
[1717430724833,0.81181089,164.38,164.37,0.3333297]
[1717430725034,2.2508,164.39,164.37,0.3333297]
[1717430725241,7.1,164.38,164.37,0.3333297]
[1717430725431,2.2508,164.38,164.37,0.3333297]
[1717430727647,9.3508,164.38,164.37,0.3333297]
[1717430731256,29.6086,164.38,164.37,0.3333297]
[1717430731855,13.8525,164.38,164.37,0.3333297]
[1717430732448,6.7525,164.38,164.37,0.3333297]
[1717430732650,13.8525,164.38,164.37,0.3333297]
[1717430734553,6.7525,164.38,164.37,0.3333297]
[1717430735053,13.5051,164.38,164.37,0.3333297]
[1717430736157,6.7525,164.38,164.37,0.3333297]
[1717430736462,13.8525,164.38,164.37,0.3333297]
[1717430737057,29.6086,164.38,164.37,0.3333297]
[1717430741962,29.6086,164.38,164.31,0.2]
[1717430741963,4.5023,164.36,164.31,0.2]
[1717430742163,2.2515,164.33,164.31,0.2]
[1717430742863,2.2517,164.32,164.31,0.2]
[1717430743583,2.2516,164.33,164.31,0.2]
[1717430744987,9.3517,164.32,164.31,0.2]
[1717430745774,2.2517,164.32,164.31,0.2]
[1717430745997,10.16351089,164.32,164.31,0.2]
[1717430746180,21.42201089,164.32,164.31,0.2]
[1717430747175,30.42881089,164.32,164.31,0.2]
[1717430748080,37.17371089,164.32,164.31,0.2]
[1717430748279,36.3619,164.32,164.31,0.2]
[1717430749177,29.2619,164.32,164.31,0.2]
[1717430749384,36.3619,164.32,164.31,0.2]
[1717430749600,72.8319,164.32,164.31,0.2]
[1717430750206,95.9404,164.32,164.31,0.2]
[1717430750388,140.9404,164.32,164.31,0.2]
[1717430750692,162.2404,164.32,164.31,0.2]
[1717430751083,81.2989,164.31,164.3,1e-08]
[1717430751279,133.7389,164.31,164.3,1e-08]
[1717430756975,126.6389,164.31,164.3,1e-08]
[1717430757175,133.7389,164.31,164.3,1e-08]
[1717430760679,117.7304,164.31,164.3,1e-08]
[1717430761088,110.6304,164.31,164.3,1e-08]
[1717430761290,117.7304,164.31,164.3,1e-08]
[1717430761577,22.5182,164.31,164.3,1e-08]
[1717430761777,29.6182,164.31,164.3,1e-08]
[1717430762093,13.5109,164.31,164.3,1e-08]
[1717430762406,2.2518,164.31,164.3,1e-08]
[1717430762577,2.2517,164.32,164.3,1e-08]
[1717430762776,2.2517,164.32,164.31,7.1]
[1717430763187,2.2518,164.31,164.3,1e-08]
[1717430763519,2.2517,164.32,164.3,13.35630001]
[1717430763697,20.56506524,164.37,164.31,7.1]
[1717430763893,2.2517,164.32,164.31,7.1]
[1717430764602,2.2517,164.32,164.31,13.3746]
[1717430764784,2.2516,164.33,164.32,6.2746]
[1717430764984,2.2514,164.34,164.32,13.3746]
[1717430765499,2.2515,164.33,164.32,13.3746]
[1717430765702,2.2514,164.34,164.32,13.3746]
[1717430765903,2.2515,164.33,164.32,13.3746]
[1717430766091,2.2514,164.34,164.32,13.3746]
[1717430767906,2.2514,164.34,164.32,6.2746]
[1717430768095,2.2515,164.33,164.32,13.3746]
[1717430768296,2.2518,164.31,164.3,1e-08]
[1717430768520,6.7554,164.31,164.3,1e-08]
[1717430770297,29.6182,164.31,164.3,1e-08]
[1717430770497,35.9056,164.31,164.3,1e-08]
[1717430770706,36.0756,164.31,164.3,1e-08]
[1717430772410,72.5456,164.31,164.3,1e-08]
[1717430772584,132.6323,164.31,164.3,1e-08]
[1717430775303,28.6356,164.31,164.3,1e-08]
[1717430775509,29.6182,164.31,164.3,1e-08]
[1717430775692,22.5182,164.31,164.3,1e-08]
[1717430776619,2.2518,164.31,164.3,1e-08]
[1717430776928,2.2517,164.32,164.3,1e-08]
[1717430777097,2.2517,164.32,164.3,7.10000001]
[1717430777296,2.2518,164.31,164.3,1e-08]
[1717430779521,3.06361089,164.31,164.3,1e-08]
[1717430780102,23.33001089,164.31,164.3,1e-08]
[1717430780512,23.67001089,164.31,164.3,1e-08]
[1717430781099,30.31751089,164.31,164.3,1e-08]
[1717430781324,66.78751089,164.31,164.3,1e-08]
[1717430781625,111.78751089,164.31,164.3,1e-08]
[1717430783111,66.78751089,164.31,164.3,1e-08]
[1717430783308,22.5182,164.31,164.3,1e-08]
[1717430783523,6.7554,164.31,164.3,1e-08]
[1717430783827,13.5109,164.31,164.3,1e-08]
[1717430784014,22.5182,164.31,164.3,1e-08]
[1717430785032,22.6882,164.31,164.3,1e-08]
[1717430785209,22.5182,164.31,164.3,1e-08]
[1717430786325,22.8582,164.31,164.3,1e-08]
[1717430789205,22.5182,164.31,164.3,1e-08]
[1717430789620,22.8582,164.31,164.3,1e-08]
[1717430791323,22.5182,164.31,164.3,1e-08]
[1717430791529,6.7554,164.31,164.3,1e-08]
[1717430792035,13.5109,164.31,164.3,1e-08]
[1717430792908,6.2554,164.31,164.3,1e-08]
[1717430794131,1.7518,164.31,164.3,1e-08]
[1717430797545,6.2554,164.31,164.3,1e-08]
[1717430797925,13.82271089,164.31,164.3,1e-08]
[1717430798239,13.0109,164.31,164.3,1e-08]
[1717430798546,28.2947,164.31,164.3,1e-08]
[1717430798713,28.6347,164.31,164.3,1e-08]
[1717430800941,22.3582,164.31,164.3,1e-08]
[1717430801246,22.0182,164.31,164.3,1e-08]
[1717430802852,22.3582,164.31,164.3,1e-08]
[1717430803738,58.8282,164.31,164.3,1e-08]
[1717430805125,22.3582,164.31,164.3,1e-08]
[1717430806742,22.0182,164.31,164.3,1e-08]
[1717430807253,1.7518,164.31,164.3,1e-08]
[1717430808445,6.2554,164.31,164.3,1e-08]
[1717430808820,1.7518,164.31,164.3,1e-08]
[1717430812139,7.06721089,164.31,164.3,1e-08]
[1717430813339,6.2554,164.31,164.3,1e-08]
[1717430816839,1.7518,164.31,164.3,1e-08]
[1717430821547,6.2554,164.31,164.3,1e-08]
[1717430821747,7.06721089,164.31,164.3,1e-08]
[1717430822263,29.95001089,164.31,164.3,1e-08]
[1717430822460,29.1382,164.31,164.3,1e-08]
[1717430822653,20.1309,164.31,164.3,1e-08]
[1717430823339,29.1382,164.31,164.3,1e-08]
[1717430824174,29.32661089,164.31,164.3,1e-08]
[1717430824543,65.79661089,164.31,164.3,1e-08]
[1717430824763,65.96661089,164.31,164.3,1e-08]
[1717430826669,110.96661089,164.31,164.3,1e-08]
[1717430828068,65.1548,164.31,164.3,1e-08]
[1717430828362,58.8282,164.31,164.3,1e-08]
[1717430830546,58.6582,164.31,164.3,1e-08]
[1717430831572,22.1882,164.31,164.3,1e-08]
[1717430831773,22.0182,164.31,164.3,1e-08]
[1717430832243,13.0109,164.31,164.3,1e-08]
[1717430832866,1.7518,164.31,164.3,1e-08]
[1717430833258,2.56361089,164.31,164.3,1e-08]
[1717430834248,1.7518,164.31,164.3,1e-08]
[1717430838076,6.2554,164.31,164.3,1e-08]
[1717430838467,13.0109,164.31,164.3,1e-08]
[1717430838651,22.0182,164.31,164.3,1e-08]
[1717430839365,1.7518,164.31,164.3,1e-08]
[1717430847071,6.2554,164.31,164.3,1e-08]
[1717430847267,13.0109,164.31,164.3,1e-08]
[1717430847763,6.2554,164.31,164.3,1e-08]
[1717430847948,14.18721089,164.31,164.3,1e-08]
[1717430848149,29.95001089,164.31,164.3,1e-08]
[1717430848550,0.2,164.44,164.41,2.2503]
[1717430848878,1.40128786,164.43,164.41,6.3883]
[1717430849177,1.40128786,164.43,164.42,47.2503]
[1717430849380,1.40128786,164.43,164.42,54.3703]
[1717430849679,1.40128786,164.43,164.42,51.3884]
[1717430849896,1.40128786,164.43,164.4,16.6007]
[1717430850067,1.40128786,164.43,164.37,6.3884]
[1717430850068,3.65148786,164.43,164.37,6.3884]
[1717430850386,3.65148786,164.43,164.38,45.0]
[1717430850387,2.2503,164.42,164.38,45.0]
[1717430850778,2.2503,164.42,164.38,49.499]
[1717430850976,3.65148786,164.43,164.38,49.499]
[1717430851181,0.2,164.44,164.38,51.7498]
[1717430851182,1.40011466,164.42,164.38,51.7498]
[1717430851381,1.40011466,164.42,164.39,2.2507]
[1717430851770,1.40011466,164.42,164.39,8.2741]
[1717430852012,1.40011466,164.42,164.4,45.0]
[1717430852170,1.40011466,164.42,164.4,47.2505]
[1717430852373,1.40011466,164.42,164.4,8.2739]
[1717430852671,1.40011466,164.42,164.41,45.0]
[1717430853688,1.40011466,164.42,164.41,68.6538]
[1717430853878,1.40011466,164.42,164.41,68.8238]
[1717430854074,1.40011466,164.42,164.41,88.8238]
[1717430854973,1.40011466,164.42,164.41,88.6538]
[1717430855180,1.40011466,164.42,164.41,73.2738]
[1717430855381,1.40011466,164.42,164.41,53.2738]
[1717430855782,1.40011466,164.42,164.41,51.0234]
[1717430856114,1.40011466,164.42,164.41,47.2504]
[1717430856466,0.2,164.44,164.41,47.2504]
[1717430856888,0.2,164.44,164.42,2.2503]
[1717430857068,0.2,164.44,164.43,2.2501]
[1717430857395,0.2,164.44,164.43,53.4041]
[1717430858687,0.2,164.44,164.43,69.4507]
[1717430859274,0.2,164.44,164.43,73.951]
[1717430859470,0.2,164.44,164.43,94.121]
[1717430862293,0.2,164.44,164.43,73.4041]
[1717430862587,0.2,164.44,164.43,2.2501]
[1717430866897,0.2,164.44,164.43,66.5033]
[1717430867080,0.2,164.44,164.43,131.5033]
[1717430868387,0.2,164.44,164.43,124.7528]
[1717430868679,0.2,164.44,164.43,108.5842]
[1717430869294,0.2,164.44,164.43,115.3347]
[1717430872297,0.2,164.44,164.43,67.4201]
[1717430872601,0.2,164.44,164.43,2.2501]
[1717430872770,0.2,164.44,164.42,2.2502]